bitfinex/quotes_SOLUSD_20250415
["timestamp","ask_amount","ask_price","bid_price","bid_amount"]
[1744729060662,100.15964886,130.82,130.81,0.03]
[1744729060842,40.72119234,130.82,130.81,0.03]
[1744729061344,18.64964886,130.82,130.81,0.03]
[1744729061829,48.36519234,130.82,130.81,0.03]
[1744729063844,106.64511461,130.87,130.81,0.03]
[1744729063845,22.07154348,130.84,130.81,0.03]
[1744729064169,18.64964886,130.85,130.82,22.07154348]
[1744729064355,15.3,130.87,130.84,22.07154348]
[1744729065029,22.9412,130.87,130.83,22.07154348]
[1744729065233,22.9412,130.87,130.83,35.31697658]
[1744729066038,22.9412,130.87,130.83,42.96037658]
[1744729066240,15.3,130.87,130.84,35.31697658]
[1744729066759,15.3,130.92,130.86,35.31697658]
[1744729067057,35.31697658,130.89,130.85,35.31697658]
[1744729067456,35.31697658,130.9,130.85,35.31697658]
[1744729067759,18.64964886,130.89,130.85,35.31697658]
[1744729067955,42.95667658,130.9,130.85,42.95897658]
[1744729068267,42.95667658,130.9,130.86,35.31697658]
[1744729068268,81.6,130.87,130.86,35.31697658]
[1744729069546,81.6,130.89,130.86,35.31697658]
[1744729069751,81.6,130.89,130.88,35.31697658]
[1744729070041,81.6,130.89,130.87,50.89737658]
[1744729070443,81.6,130.89,130.87,15.5804]
[1744729070640,81.6,130.89,130.87,1.5923]
[1744729071364,81.6,130.88,130.84,41.58957658]
[1744729071545,81.6,130.87,130.84,41.58957658]
[1744729071871,81.6,130.87,130.84,49.23237658]
[1744729072049,81.6,130.87,130.85,35.31697658]
[1744729072436,81.6,130.87,130.85,42.95887658]
[1744729072945,81.6,130.87,130.85,35.31697658]
[1744729073147,81.6,130.87,130.84,49.23217658]
[1744729073666,81.6,130.87,130.84,41.58957658]
[1744729073852,89.2412,130.87,130.84,41.58957658]
[1744729074056,18.64964886,130.86,130.83,27.5217]
[1744729074253,53.96662544,130.86,130.83,1.5217]
[1744729074457,18.64964886,130.86,130.83,36.83867658]
[1744729074661,81.6,130.85,130.83,36.83867658]
[1744729074969,81.6,130.84,130.83,9.1652]
[1744729075142,81.6,130.84,130.83,36.83867658]
[1744729075339,81.6,130.84,130.83,44.48217658]
[1744729075761,81.6,130.84,130.83,9.1652]
[1744729076165,81.6,130.84,130.83,36.83867658]
[1744729077056,53.96662544,130.84,130.81,0.03]
[1744729077363,53.96662544,130.82,130.81,0.03]
[1744729077564,35.31697658,130.84,130.81,0.03]
[1744729077744,18.64964886,130.83,130.81,0.03]
[1744729077940,53.96662544,130.84,130.81,0.03]
[1744729078659,7.6435,130.83,130.81,0.03]
[1744729078847,53.96662544,130.82,130.81,0.03]
[1744729079253,18.64964886,130.82,130.81,0.03]
[1744729079665,53.96662544,130.82,130.81,0.03]
[1744729080169,18.64964886,130.82,130.81,0.03]
[1744729080746,26.29364886,130.82,130.81,0.03]
[1744729081270,61.61062544,130.82,130.81,0.03]
[1744729085272,48.39483956,130.82,130.81,0.03]
[1744729086178,18.64964886,130.81,130.78,0.03]
[1744729086476,22.1011907,130.79,130.78,0.03]
[1744729086661,37.3411907,130.79,130.78,0.03]
[1744729086857,55.99083956,130.79,130.78,0.03]
[1744729087061,55.99083956,130.79,130.77,0.03]
[1744729087062,26.29604886,130.78,130.77,0.03]
[1744729087264,48.39723956,130.78,130.77,0.03]
[1744729088776,67.51323956,130.78,130.75,0.03]
[1744729088976,40.75083956,130.76,130.75,0.03]
[1744729089194,18.64964886,130.75,130.72,0.03]
[1744729089372,40.75083956,130.73,130.72,0.03]
[1744729089680,56.01083956,130.73,130.72,0.03]
[1744729090370,33.90964886,130.73,130.72,0.03]
[1744729090569,56.01083956,130.73,130.72,0.03]
[1744729090764,15.26,130.73,130.72,0.03]
[1744729091172,15.26,130.73,130.72,22.1311907]
[1744729092758,15.26,130.73,130.72,0.03]
[1744729092976,15.26,130.73,130.72,48.1311907]
[1744729093584,18.64964886,130.78,130.73,7.783]
[1744729093778,15.26,130.8,130.77,22.1011907]
[1744729094291,15.26,130.8,130.78,22.1011907]
[1744729094581,15.26,130.8,130.77,22.1011907]
[1744729094793,15.26,130.8,130.78,29.7474907]
[1744729094962,15.26,130.8,130.77,7.6467]
[1744729095285,81.6,130.79,130.77,22.1011907]
[1744729095584,81.6,130.78,130.76,26.0]
[1744729096287,81.6,130.78,130.74,7.6484]
[1744729096485,81.6,130.78,130.73,7.783]
[1744729096486,81.6,130.77,130.73,7.783]
[1744729096702,103.7011907,130.77,130.73,7.783]
[1744729096878,7.6475,130.76,130.73,7.783]
[1744729097076,81.6,130.75,130.73,1.5149]
[1744729097391,81.6,130.74,130.73,1.5149]
[1744729098669,22.1011907,130.74,130.72,0.03]
[1744729098991,26.29794886,130.75,130.72,0.03]
[1744729099986,61.68198471,130.75,130.72,0.03]
[1744729100361,35.38403585,130.73,130.72,0.03]
[1744729100973,15.26,130.74,130.72,35.41403585]
[1744729101287,81.6,130.75,130.73,35.38403585]
[1744729101485,81.6,130.75,130.74,35.38403585]
[1744729101972,81.6,130.78,130.74,35.38403585]
[1744729102173,81.6,130.78,130.77,35.38403585]
[1744729102381,81.6,130.78,130.76,35.38403585]
[1744729102769,135.63368471,130.77,130.72,43.06383585]
[1744729103168,81.6,130.77,130.73,35.38403585]
[1744729103491,81.6,130.77,130.75,35.38403585]
[1744729103690,81.6,130.77,130.74,35.38403585]
[1744729104081,81.6,130.77,130.75,35.38403585]
[1744729104274,81.6,130.78,130.76,1.6004]
[1744729104470,81.6,130.78,130.77,35.38403585]
[1744729105395,15.26,130.79,130.77,35.38403585]
[1744729105564,81.6,130.81,130.78,35.38403585]
[1744729105891,89.2447,130.81,130.78,35.38403585]
[1744729106261,81.6,130.81,130.78,35.38403585]
[1744729106465,89.2448,130.81,130.78,35.38403585]
[1744729107670,89.2448,130.81,130.77,35.38403585]
[1744729107873,124.62883585,130.81,130.76,36.98443585]
[1744729108078,124.62883585,130.81,130.77,35.38403585]
[1744729108394,81.6,130.76,130.72,1.6811]
[1744729108594,81.6,130.75,130.72,1.6811]
[1744729108995,124.63243585,130.75,130.72,1.6811]
[1744729109185,81.6,130.75,130.73,35.38403585]
[1744729109793,81.6,130.75,130.72,37.06513585]
[1744729110000,81.6,130.75,130.72,44.71493585]
[1744729110396,81.6,130.75,130.74,35.38403585]
[1744729111301,81.6,130.75,130.73,35.38403585]
[1744729111601,89.2482,130.75,130.72,37.06513585]
[1744729112093,81.6,130.75,130.74,35.38403585]
[1744729112398,81.6,130.75,130.73,35.38403585]
[1744729112595,89.2482,130.75,130.72,37.06513585]
[1744729113397,89.2482,130.75,130.72,1.6811]
[1744729113702,89.2482,130.75,130.72,37.06513585]
[1744729114293,89.2482,130.75,130.72,1.6811]
[1744729115690,81.6,130.74,130.72,1.6811]
[1744729115884,81.6,130.73,130.72,1.6811]
[1744729116105,81.6,130.73,130.72,37.06513585]
[1744729117500,81.6,130.73,130.72,0.03]
[1744729118400,89.2493,130.73,130.72,0.03]
[1744729119586,81.6,130.73,130.72,0.03]
[1744729119779,18.64964886,130.73,130.72,22.15055197]
[1744729120084,7.6489,130.74,130.72,0.03]
[1744729120286,29.76945197,130.74,130.72,0.03]
[1744729120487,48.41950083,130.73,130.72,0.03]
[1744729122309,26.29894886,130.73,130.72,0.03]
[1744729122503,48.41950083,130.73,130.72,0.03]
[1744729124301,48.41950083,130.73,130.7,0.03]
[1744729124302,67.54280083,130.73,130.7,0.03]
[1744729124507,40.77020083,130.71,130.7,0.03]
[1744729124709,26.30014886,130.71,130.7,0.03]
[1744729124908,48.42070083,130.71,130.7,0.03]
[1744729125598,48.42070083,130.71,130.67,0.43]
[1744729125599,139.54479803,130.71,130.67,0.43]
[1744729125796,40.77020083,130.68,130.67,0.43]
[1744729126748,48.42240083,130.68,130.67,0.0001]
[1744729126885,25.09114886,130.67,130.66,0.0001]
[1744729127089,51.11275669,130.67,130.66,0.0001]
[1744729127393,51.11275669,130.67,130.59,27.6166]
[1744729127394,18.64964886,130.65,130.59,0.03]
[1744729127588,18.64964886,130.63,130.59,0.03]
[1744729127793,22.12055197,130.62,130.59,0.03]
[1744729128209,22.12055197,130.6,130.59,0.03]
[1744729128414,100.24964886,130.61,130.59,0.03]
[1744729128916,81.6,130.6,130.59,0.03]
[1744729129619,100.24964886,130.6,130.59,0.03]
[1744729130196,81.6,130.6,130.59,0.03]
[1744729130521,100.24964886,130.6,130.59,0.03]
[1744729132327,26.0,130.65,130.59,22.15055197]
[1744729132531,33.84964886,130.64,130.61,22.12055197]
[1744729133110,33.84964886,130.64,130.62,22.12055197]
[1744729133311,15.2,130.64,130.63,22.12055197]
[1744729133609,15.14,130.69,130.65,1.6109]
[1744729133817,15.14,130.69,130.67,22.12055197]
[1744729134016,18.64964886,130.68,130.67,22.12055197]
[1744729134202,18.64964886,130.68,130.66,22.12055197]
[1744729134615,15.14,130.69,130.66,22.12055197]
[1744729135016,18.64964886,130.68,130.65,9.2645]
[1744729135217,18.64964886,130.68,130.65,44.67944031]
[1744729135623,18.64964886,130.68,130.64,43.06934031]
[1744729135834,18.64964886,130.68,130.65,35.41494031]
[1744729136415,15.14,130.69,130.66,35.41494031]
[1744729137228,18.64964886,130.7,130.68,35.41494031]
[1744729137405,81.6,130.69,130.68,35.41494031]
[1744729138025,81.6,130.69,130.67,35.41494031]
[1744729139018,81.6,130.69,130.67,43.06734031]
[1744729139228,81.6,130.69,130.68,35.41494031]
[1744729139629,81.6,130.69,130.67,43.06734031]
[1744729139817,81.6,130.69,130.68,35.41494031]
[1744729140824,81.6,130.69,130.68,35.84142502]
[1744729141037,81.6,130.69,130.67,43.06734031]
[1744729141339,81.6,130.69,130.66,35.41494031]
[1744729142232,81.6,130.69,130.67,35.41494031]
[1744729142407,81.6,130.69,130.68,35.41494031]
[1744729142612,81.6,130.69,130.67,35.41494031]
[1744729142820,81.6,130.69,130.65,43.06884031]
[1744729143008,81.6,130.68,130.65,35.41494031]
[1744729143333,81.6,130.68,130.65,43.06874031]
[1744729143526,81.6,130.68,130.66,35.41494031]
[1744729143728,81.6,130.68,130.67,35.41494031]
[1744729144223,81.6,130.68,130.67,35.84142502]
[1744729145114,81.6,130.68,130.67,43.49422502]
[1744729145826,81.6,130.68,130.67,43.77854816]
[1744729146129,81.6,130.68,130.67,45.39474816]
[1744729146619,81.6,130.68,130.67,1.6162]
[1744729146819,81.6,130.68,130.65,0.42648471]
[1744729147031,81.6,130.67,130.64,43.06894031]
[1744729148031,81.6,130.66,130.64,43.06894031]
[1744729148225,81.6,130.65,130.64,43.49542502]
[1744729149427,81.6,130.65,130.64,43.77974816]
[1744729149630,81.6,130.69,130.68,0.28432314]
[1744729149822,81.6,130.69,130.68,35.84142502]
[1744729150418,81.6,130.69,130.68,0.42648471]
[1744729150637,81.6,130.69,130.68,35.84142502]
[1744729151338,81.6,130.69,130.68,43.49362502]
[1744729152243,81.6,130.69,130.68,43.77794816]
[1744729154638,81.6,130.69,130.68,43.49362502]
[1744729154846,81.6,130.69,130.67,69.06754031]
[1744729155131,81.6,130.69,130.67,29.77993235]
[1744729155745,81.6,130.69,130.68,22.12733235]
[1744729156819,81.6,130.69,130.67,7.6526]
[1744729156820,18.64964886,130.7,130.67,26.0]
[1744729157034,18.64964886,130.7,130.67,48.12733235]
[1744729157822,18.64964886,130.73,130.69,22.12733235]
[1744729158031,81.6,130.72,130.69,22.12733235]
[1744729158225,18.64964886,130.73,130.71,22.12733235]
[1744729158824,22.7889,130.74,130.71,22.12733235]
[1744729159835,18.64964886,130.73,130.71,22.12733235]
[1744729160845,18.64964886,130.73,130.7,22.12733235]
[1744729161644,18.64964886,130.73,130.71,22.12733235]
[1744729162545,15.14,130.74,130.71,29.77773235]
[1744729162841,15.14,130.74,130.71,22.12733235]
[1744729163153,15.14,130.74,130.7,22.12733235]
[1744729163154,18.64964886,130.73,130.7,22.12733235]
[1744729163447,18.64964886,130.73,130.69,22.12733235]
[1744729163639,18.64964886,130.73,130.7,22.12733235]
[1744729164844,18.71264886,130.75,130.72,22.12733235]
[1744729165250,7.7113,130.75,130.72,22.12733235]
[1744729167448,0.063,130.75,130.72,7.6497]
[1744729167653,81.6,130.74,130.73,0.42648471]
[1744729167826,81.6,130.74,130.73,22.55381706]
[1744729169039,81.6,130.74,130.73,22.8381402]
[1744729169238,81.6,130.74,130.73,22.55381706]
[1744729169453,81.6,130.74,130.73,22.8381402]
[1744729169950,81.6,130.74,130.73,30.4874402]
[1744729170141,81.6,130.74,130.73,56.4874402]
[1744729171952,0.063,130.75,130.7,22.12733235]
[1744729171953,81.6,130.73,130.7,22.12733235]
[1744729172141,81.6,130.73,130.7,26.42648471]
[1744729172340,81.6,130.72,130.69,22.12733235]
[1744729172534,81.6,130.71,130.68,22.41165549]
[1744729172857,81.6,130.71,130.66,22.12733235]
[1744729172858,100.24964886,130.7,130.66,22.12733235]
[1744729173037,81.6,130.69,130.66,0.14216157]
[1744729173241,81.6,130.68,130.65,22.41165549]
[1744729173438,81.6,130.68,130.63,1.6223]
[1744729173439,100.24964886,130.67,130.63,1.6223]
[1744729173640,81.6,130.66,130.63,49.74963235]
[1744729173934,81.6,130.66,130.64,22.12733235]
[1744729174345,81.6,130.66,130.63,49.74963235]
[1744729175060,81.6,130.66,130.63,23.74963235]
[1744729175259,81.6,130.66,130.63,9.2774]
[1744729175434,81.6,130.66,130.64,22.12733235]
[1744729175833,81.6,130.66,130.65,22.12733235]
[1744729176241,81.6,130.66,130.64,29.78143235]
[1744729177247,81.6,130.66,130.64,7.6541]
[1744729177552,81.6,130.66,130.64,29.78143235]
[1744729177757,81.6,130.66,130.65,22.12733235]
[1744729177937,81.6,130.66,130.64,29.78143235]
[1744729178139,81.6,130.66,130.65,22.12733235]
[1744729179275,81.6,130.66,130.65,22.55381706]
[1744729179431,81.6,130.66,130.65,22.8381402]
[1744729179834,81.6,130.66,130.65,56.4921402]
[1744729181145,81.6,130.66,130.65,56.20781706]
[1744729181945,81.6,130.66,130.65,48.12733235]
[1744729182260,81.6,130.66,130.64,0.42648471]
[1744729182458,81.6,130.65,130.64,22.12733235]
[1744729183251,81.6,130.65,130.64,36.130589]
[1744729183467,81.6,130.68,130.65,0.28432314]
[1744729183644,81.6,130.68,130.67,35.41978115]
[1744729183846,18.64964886,130.7,130.67,35.41978115]
[1744729184044,18.64964886,130.7,130.68,35.41978115]
[1744729186737,18.64964886,130.7,130.67,35.41978115]
[1744729186934,26.30084886,130.7,130.67,35.41978115]
[1744729187151,61.72063001,130.7,130.65,35.41978115]
[1744729187345,117.01978115,130.69,130.64,26.0]
[1744729187547,18.64964886,130.68,130.64,61.41978115]
[1744729187776,81.6,130.67,130.64,61.41978115]
[1744729187978,81.6,130.67,130.65,35.41978115]
[1744729188765,81.6,130.67,130.64,61.41978115]
[1744729189281,81.6,130.67,130.65,35.41978115]
[1744729190473,89.253,130.67,130.64,61.41978115]
[1744729190846,81.6,130.67,130.64,61.41978115]
[1744729191176,81.6,130.67,130.65,35.41978115]
[1744729191351,81.6,130.66,130.63,0.14216157]
[1744729191671,81.6,130.66,130.64,35.41978115]
[1744729191975,81.6,130.66,130.65,35.41978115]
[1744729193257,81.6,130.66,130.65,43.50026586]
[1744729193476,81.6,130.66,130.65,43.784589]
[1744729194045,81.6,130.66,130.65,43.50026586]
[1744729194849,81.6,130.66,130.65,43.784589]
[1744729195572,81.6,130.66,130.65,71.287989]
[1744729196151,81.6,130.66,130.65,77.380789]
[1744729196349,18.64964886,130.69,130.65,26.0]
[1744729196651,89.2511,130.7,130.66,35.41978115]
[1744729196959,81.6,130.7,130.69,35.41978115]
[1744729197159,15.06,130.71,130.68,35.41978115]
[1744729198176,18.64964886,130.7,130.68,35.41978115]
[1744729198368,61.72063001,130.7,130.65,26.0]
[1744729198682,18.64964886,130.68,130.65,35.41978115]
[1744729200180,81.6,130.67,130.66,35.41978115]
[1744729200377,81.6,130.67,130.66,36.130589]
[1744729200577,15.06,130.71,130.66,36.130589]
[1744729200578,81.6,130.69,130.68,26.42648471]
[1744729200886,81.6,130.69,130.68,61.41978115]
[1744729201089,81.6,130.69,130.67,35.41978115]
[1744729202374,81.6,130.69,130.68,35.41978115]
[1744729202876,81.6,130.69,130.67,35.41978115]
[1744729203179,81.6,130.69,130.68,35.41978115]
[1744729203480,81.6,130.69,130.63,61.41978115]
[1744729203481,100.24964886,130.68,130.63,61.41978115]
[1744729203660,81.6,130.67,130.64,35.41978115]
[1744729203859,81.6,130.67,130.65,35.41978115]
[1744729204076,81.6,130.67,130.66,35.41978115]
[1744729204283,26.30154886,130.69,130.66,35.41978115]
[1744729204477,18.64964886,130.69,130.66,35.41978115]
[1744729204683,15.06,130.71,130.68,35.41978115]
[1744729205180,15.06,130.71,130.68,22.12344557]
[1744729205359,18.64964886,130.68,130.64,0.14216157]
[1744729205675,22.7105,130.71,130.67,22.12344557]
[1744729206075,18.64964886,130.68,130.64,22.12344557]
[1744729206258,40.77309443,130.67,130.62,22.12344557]
[1744729206462,40.77309443,130.67,130.62,55.77904557]
[1744729206683,18.64964886,130.68,130.64,22.12344557]
[1744729207781,15.0,130.7,130.67,22.12344557]
[1744729208086,15.0,130.7,130.69,22.12344557]
[1744729208478,26.29984886,130.72,130.69,22.12344557]
[1744729208677,26.29984886,130.72,130.68,22.12344557]
[1744729209302,67.54809443,130.72,130.65,1.5823]
[1744729209468,40.77309443,130.69,130.61,1.5491]
[1744729209670,18.64964886,130.66,130.63,48.12344557]
[1744729209974,18.64964886,130.66,130.64,22.12344557]
[1744729210285,18.64964886,130.66,130.62,22.12344557]
[1744729210488,18.64964886,130.66,130.64,22.12344557]
[1744729211190,18.64964886,130.66,130.63,35.42322607]
[1744729211566,15.0,130.69,130.65,35.42322607]
[1744729211804,22.6516,130.69,130.67,35.42322607]
[1744729211990,15.0,130.69,130.67,35.42322607]
[1744729212479,15.0,130.69,130.66,35.42322607]
[1744729212667,81.6,130.68,130.66,35.42322607]
[1744729214490,81.6,130.68,130.65,0.42648471]
[1744729214689,89.2524,130.68,130.63,0.28432314]
[1744729214993,100.24964886,130.67,130.64,35.42322607]
[1744729215170,100.24964886,130.67,130.63,35.84971078]
[1744729215597,100.24964886,130.67,130.64,35.42322607]
[1744729215781,100.24964886,130.67,130.65,35.42322607]
[1744729216091,100.24964886,130.67,130.64,35.42322607]
[1744729216411,81.6,130.67,130.65,35.42322607]
[1744729217185,81.6,130.67,130.66,35.84971078]
[1744729217798,81.6,130.67,130.66,43.50311078]
[1744729218765,81.6,130.67,130.66,43.78743392]
[1744729218967,81.6,130.7,130.67,0.28432314]
[1744729219188,81.6,130.7,130.69,35.42322607]
[1744729219500,15.0,130.71,130.69,35.42322607]
[1744729219793,15.0,130.71,130.7,35.42322607]
[1744729220296,15.0,130.71,130.69,35.42322607]
[1744729220779,18.64964886,130.68,130.63,1.6182]
[1744729220990,81.6,130.67,130.63,35.42322607]
[1744729221295,81.6,130.67,130.66,35.42322607]
[1744729221483,18.64964886,130.7,130.66,35.42322607]
[1744729221683,18.64964886,130.68,130.66,35.42322607]
[1744729222085,18.64964886,130.68,130.65,35.42322607]
[1744729223205,26.30214886,130.68,130.65,35.42322607]
[1744729223385,18.64964886,130.7,130.67,35.42322607]
[1744729224318,26.30094886,130.7,130.66,35.42322607]
[1744729224493,26.30094886,130.7,130.64,7.6545]
[1744729224494,61.72417493,130.7,130.65,35.42322607]
[1744729224996,45.42864886,130.7,130.66,35.42322607]
[1744729225206,26.30094886,130.7,130.66,35.42322607]
[1744729225789,18.64964886,130.7,130.68,35.42322607]
[1744729226002,283.2528879,130.75,130.68,0.28432314]
[1744729226003,81.6,130.69,130.68,0.28432314]
[1744729226301,81.6,130.72,130.69,0.28432314]
[1744729226500,81.6,130.71,130.7,0.42648471]
[1744729227202,81.6,130.71,130.7,8.36190785]
[1744729227706,81.6,130.71,130.7,43.78513392]
[1744729228175,81.6,130.71,130.7,35.84971078]
[1744729228380,81.6,130.7,130.68,35.42322607]
[1744729228707,81.6,130.7,130.67,35.42322607]
[1744729229092,81.6,130.7,130.68,35.42322607]
[1744729229299,81.6,130.7,130.69,35.42322607]
[1744729229499,81.6,130.7,130.68,35.42322607]
[1744729229693,89.2511,130.7,130.68,35.42322607]
[1744729229901,81.6,130.7,130.69,35.42322607]
[1744729231008,81.6,130.7,130.69,35.84971078]
[1744729231194,81.6,130.72,130.7,0.42648471]
[1744729231385,81.6,130.72,130.71,35.42322607]
[1744729231906,81.6,130.72,130.71,35.84971078]
[1744729232290,81.6,130.72,130.71,36.13403392]
[1744729232700,18.71264886,130.75,130.71,35.42322607]
[1744729233007,54.07287493,130.72,130.67,35.42322607]
[1744729233312,18.64964886,130.7,130.66,35.42322607]
[1744729233493,18.64964886,130.7,130.65,26.28432314]
[1744729233494,89.2516,130.69,130.65,26.28432314]
[1744729233679,89.2516,130.69,130.64,35.42322607]
[1744729233680,100.24964886,130.68,130.64,35.42322607]
[1744729233880,81.6,130.68,130.66,35.70754921]
[1744729234087,81.6,130.68,130.67,35.42322607]
[1744729234286,81.6,130.68,130.67,35.84971078]
[1744729235007,81.6,130.68,130.67,35.42322607]
[1744729235401,7.6528,130.67,130.63,27.6319]
[1744729235707,89.2528,130.67,130.65,35.42322607]
[1744729236009,81.6,130.67,130.65,35.42322607]
[1744729236196,81.6,130.67,130.66,35.42322607]
[1744729236506,7.6519,130.69,130.66,35.42322607]
[1744729236708,18.64964886,130.68,130.65,35.42322607]
[1744729237010,81.6,130.67,130.65,35.42322607]
[1744729237189,81.6,130.67,130.64,35.42322607]
[1744729237397,89.2533,130.67,130.64,35.42322607]
[1744729238205,89.2533,130.67,130.62,8.08188471]
[1744729238389,81.6,130.66,130.65,35.42322607]
[1744729238590,7.6533,130.67,130.65,35.42322607]
[1744729239095,18.64964886,130.68,130.65,35.42322607]
[1744729239421,33.58964886,130.7,130.67,35.42322607]
[1744729239622,81.6,130.69,130.67,35.42322607]
[1744729239911,81.6,130.69,130.68,35.42322607]
[1744729240217,81.6,130.69,130.65,0.42648471]
[1744729240218,81.6,130.69,130.67,35.42322607]
[1744729241000,89.2517,130.69,130.67,35.42322607]
[1744729241210,81.6,130.69,130.68,35.42322607]
[1744729241408,81.6,130.69,130.68,36.13403392]
[1744729241588,81.6,130.69,130.68,71.55725999]
[1744729241787,81.6,130.73,130.69,0.42648471]
[1744729242016,81.6,130.73,130.72,36.13403392]
[1744729242206,0.063,130.75,130.74,26.0]
[1744729242394,0.063,130.75,130.74,61.70754921]
[1744729242711,0.063,130.75,130.74,35.42322607]
[1744729243518,0.063,130.75,130.74,43.78273392]
[1744729243714,0.063,130.75,130.74,36.13403392]
[1744729244391,0.063,130.75,130.74,35.84971078]
[1744729244801,0.063,130.75,130.74,36.13403392]
[1744729245018,0.063,130.75,130.74,35.84971078]
[1744729245420,18.71264886,130.75,130.69,1.5542]
[1744729245595,81.6,130.74,130.72,35.42322607]
[1744729246000,0.063,130.75,130.69,1.5542]
[1744729246001,81.6,130.73,130.69,1.5542]
[1744729246314,81.6,130.73,130.68,6.1029]
[1744729246315,100.24964886,130.72,130.68,35.42322607]
[1744729246516,100.24964886,130.72,130.7,35.42322607]
[1744729246692,81.6,130.72,130.7,35.42322607]
[1744729246895,89.25,130.72,130.7,35.42322607]
[1744729247304,81.6,130.72,130.7,35.42322607]
[1744729247589,81.6,130.72,130.71,35.42322607]
[1744729247789,18.64964886,130.74,130.71,35.42322607]
[1744729247790,81.6,130.74,130.72,0.42648471]
[1744729247990,81.6,130.74,130.73,35.84971078]
[1744729251521,81.6,130.74,130.72,35.42322607]
[1744729251522,89.2487,130.74,130.72,35.42322607]
[1744729252020,81.6,130.74,130.72,35.42322607]
[1744729252517,89.2488,130.74,130.72,35.42322607]
[1744729252710,81.6,130.74,130.72,35.42322607]
[1744729253528,81.6,130.73,130.72,35.42322607]
[1744729254350,81.6,130.73,130.72,43.78393392]
[1744729254537,81.6,130.73,130.72,45.31413392]
[1744729254904,0.063,130.75,130.73,0.42648471]
[1744729255129,0.063,130.75,130.74,61.70754921]
[1744729256012,0.063,130.75,130.74,69.35624921]
[1744729256841,0.063,130.75,130.74,69.78273392]
[1744729258839,0.063,130.75,130.74,105.20595999]
[1744729259133,0.063,130.76,130.75,71.55725999]
[1744729260418,0.063,130.76,130.75,79.20535999]
[1744729260935,0.063,130.76,130.75,43.78213392]
[1744729261931,0.063,130.76,130.75,0.28432314]
[1744729262128,0.063,130.76,130.73,0.28432314]
[1744729262342,0.063,130.76,130.73,35.70754921]
[1744729262634,0.063,130.76,130.74,0.14216157]
[1744729262933,0.063,130.76,130.74,35.42322607]
[1744729263737,0.063,130.76,130.73,35.84971078]
[1744729263738,81.6,130.75,130.73,35.84971078]
[1744729264049,0.063,130.76,130.75,0.28432314]
[1744729264227,0.063,130.76,130.75,35.70754921]
[1744729264632,0.063,130.76,130.75,43.78213392]
[1744729264832,0.063,130.76,130.75,69.78213392]
[1744729265035,0.063,130.76,130.75,71.41653392]
[1744729265216,0.063,130.78,130.77,26.56864628]
[1744729265429,0.063,130.81,130.79,0.14216157]
[1744729265618,0.063,130.81,130.8,0.71080785]
[1744729265941,0.063,130.82,130.81,2.35990785]
[1744729266127,0.063,130.82,130.81,37.78313392]
[1744729266442,0.063,130.83,130.82,0.71080785]
[1744729266642,0.063,130.83,130.82,35.84971078]
[1744729267140,35.48622607,130.83,130.78,0.56864628]
[1744729267345,81.663,130.83,130.79,35.42322607]
[1744729267544,117.08622607,130.83,130.79,35.42322607]
[1744729268218,89.3068,130.83,130.79,35.42322607]
[1744729268414,89.3068,130.83,130.8,35.42322607]
[1744729268823,124.73002607,130.83,130.78,0.71080785]
[1744729269246,35.42322607,130.8,130.77,0.28432314]
[1744729269546,54.07287493,130.78,130.74,35.42322607]
[1744729269730,117.02322607,130.77,130.73,35.42322607]
[1744729269935,81.6,130.77,130.73,35.42322607]
[1744729270361,89.2472,130.77,130.74,35.42322607]
[1744729271929,81.6,130.77,130.76,35.42322607]
[1744729272130,81.6,130.77,130.76,35.84971078]
[1744729272340,81.6,130.77,130.76,43.78153392]
[1744729272542,14.86,130.78,130.77,0.71080785]
[1744729272848,81.6,130.82,130.77,36.13403392]